fUST/lending_fUST_20241006
["ID","MTS","AMOUNT","RATE_DAILY","PERIOD"]
[339945476,1728178249962,-500.0,0.00013972,2]
[339945477,1728178249973,-500.0,0.00013972,2]
[339945478,1728178249982,-500.0,0.00013972,2]
[339945479,1728178249992,-500.0,0.00013972,2]
[339945480,1728178250002,-500.0,0.00013972,2]
[339945481,1728178250014,-500.0,0.00013972,2]
[339945482,1728178250025,-534.05111805,0.00013972,2]
[339945483,1728178250035,-500.0,0.00013972,2]
[339945484,1728178250046,-500.0,0.00013972,2]
[339945485,1728178250055,-631.71,0.00013972,2]
[339945486,1728178250065,-664.24,0.00013972,2]
[339945487,1728178250075,-500.0,0.00013972,2]
[339945488,1728178250085,-609.890654,0.00013972,2]
[339945489,1728178250095,-500.0,0.00013972,2]
[339945490,1728178250104,-500.0,0.00013972,2]
[339945491,1728178250114,-540.22084675,0.00013972,2]
[339945492,1728178250124,-500.0,0.00013972,2]
[339945493,1728178250133,-500.0,0.00013972,2]
[339945494,1728178250142,-500.0,0.00013972,2]
[339945495,1728178250152,-500.0,0.00013972,2]
[339945496,1728178250162,-500.0,0.00013972,2]
[339945497,1728178250171,-500.0,0.00013972,2]
[339945498,1728178250182,-524.31,0.00013972,2]
[339945499,1728178250191,-500.0,0.00013972,2]
[339945500,1728178250200,-518.37123929,0.00013972,2]
[339945501,1728178250210,-500.0,0.00013972,2]
[339945502,1728178250220,-720.37,0.00013972,2]
[339945503,1728178250229,-500.0,0.00013972,2]
[339945504,1728178250240,-435.89825564,0.00013972,2]
[339945505,1728178250251,-500.0,0.00013972,2]
[339945506,1728178250263,-1167.25,0.00013972,2]
[339945507,1728178250273,-500.0,0.00013972,2]
[339945508,1728178250283,-500.0,0.00013972,2]
[339945509,1728178250293,-500.0,0.00013972,2]
[339945510,1728178250304,-611.01443007,0.00013972,2]
[339945511,1728178250313,-500.0,0.00013972,2]
[339945512,1728178250326,-500.0,0.00013972,2]
[339945513,1728178250335,-500.0,0.00013972,2]
[339945514,1728178250347,-500.0,0.00013972,2]
[339945515,1728178250357,-500.0,0.00013972,2]
[339945516,1728178250368,-500.0,0.00013972,2]
[339945517,1728178250379,-500.0,0.00013972,2]
[339945518,1728178250390,-500.0,0.00013972,2]
[339945519,1728178250402,-500.0,0.00013972,2]
[339945520,1728178250412,-671.71,0.00013972,2]
[339945521,1728178250422,-500.0,0.00013972,2]
[339945522,1728178250432,-477.61763527,0.00013972,2]
[339945523,1728178250443,-500.0,0.00013972,2]
[339945524,1728178250453,-455.99407016,0.00013972,2]
[339945525,1728178250464,-500.0,0.00013972,2]
[339945526,1728178250475,-151.0,0.00013972,2]
[339945527,1728178250486,-716.74,0.00013972,2]
[339945528,1728178250496,-500.0,0.00013972,2]
[339945529,1728178250506,-500.0,0.00013972,2]
[339945530,1728178250517,-500.0,0.00013972,2]
[339945531,1728178250527,-577.93008809,0.00013972,2]
[339945532,1728178250538,-500.0,0.00013972,2]
[339945533,1728178250550,-500.0,0.00013972,2]
[339945534,1728178250560,-500.0,0.00013972,2]
[339945535,1728178250573,-500.0,0.00013972,2]
[339945536,1728178250584,-500.0,0.00013972,2]
[339945537,1728178250595,-500.0,0.00013972,2]
[339945538,1728178250608,-500.0,0.00013972,2]
[339945539,1728178250619,-500.0,0.00013972,2]
[339945540,1728178250628,-500.0,0.00013972,2]
[339945541,1728178250639,-674.49,0.00013972,2]
[339945542,1728178250652,-500.0,0.00013972,2]
[339945543,1728178250661,-500.0,0.00013972,2]
[339945544,1728178250671,-151.0,0.00013972,2]
[339945545,1728178250685,-500.51,0.00013972,2]
[339945546,1728178250695,-500.0,0.00013972,2]
[339945547,1728178250705,-1317.42,0.00013972,2]
[339945548,1728178250716,-500.0,0.00013972,2]
[339945549,1728178250728,-500.0,0.00013972,2]
[339945550,1728178250740,-500.0,0.00013972,2]
[339945551,1728178250753,-500.0,0.00013972,2]
[339945552,1728178250765,-500.0,0.00013972,2]
[339945553,1728178250776,-500.0,0.00013972,2]
[339945554,1728178250787,-585.47,0.00013972,2]
[339945555,1728178250798,-500.0,0.00013972,2]
[339945556,1728178250809,-500.0,0.00013972,2]
[339945557,1728178250819,-517.36,0.00013972,2]
[339945558,1728178250830,-519.89694902,0.00013972,2]
[339945559,1728178250841,-151.0,0.00013972,2]
[339945560,1728178250850,-530.98318467,0.00013972,2]
[339945561,1728178250860,-151.0,0.00013972,2]
[339945562,1728178250871,-708.24,0.00013972,2]
[339945563,1728178250882,-500.0,0.00013972,2]
[339945564,1728178250892,-500.0,0.00013972,2]
[339945565,1728178250902,-546.41,0.00013972,2]
[339945566,1728178250913,-500.0,0.00013972,2]
[339945567,1728178250924,-500.0,0.00013972,2]
[339945568,1728178250935,-500.0,0.00013972,2]
[339945569,1728178250946,-500.0,0.00013972,2]
[339945570,1728178250957,-500.0,0.00013972,2]
[339945571,1728178250967,-500.0,0.00013972,2]
[339945572,1728178250978,-500.0,0.00013972,2]
[339945573,1728178250989,-700.62,0.00013972,2]
[339945574,1728178250999,-500.0,0.00013972,2]
[339945575,1728178251010,-500.0,0.00013972,2]
[339945576,1728178251022,-963.27,0.00013972,2]
[339945577,1728178251033,-500.0,0.00013972,2]
[339945578,1728178251045,-500.0,0.00013972,2]
[339945579,1728178251055,-500.0,0.00013972,2]
[339945580,1728178251066,-500.0,0.00013972,2]
[339945581,1728178251078,-500.0,0.00013972,2]
[339945582,1728178251089,-500.0,0.00013972,2]
[339945583,1728178251099,-500.0,0.00013972,2]
[339945584,1728178251111,-151.0,0.00013972,2]
[339945585,1728178251123,-530.43,0.00013972,2]
[339945586,1728178251134,-151.0,0.00013972,2]
[339945587,1728178251144,-500.0,0.00013972,2]
[339945588,1728178251155,-500.0,0.00013972,2]
[339945589,1728178251166,-839.62,0.00013972,2]
[339945590,1728178251178,-1146.37,0.00013972,2]
[339945591,1728178251189,-500.0,0.00013972,2]
[339945592,1728178251199,-500.0,0.00013972,2]
[339945593,1728178251208,-500.0,0.00013972,2]
[339945594,1728178251219,-500.0,0.00013972,2]
[339945595,1728178251229,-500.0,0.00013972,2]
[339945596,1728178251240,-210.80882037,0.00013972,2]
[339945597,1728178251252,-514.55877139,0.00013972,2]
[339945598,1728178251263,-537.74,0.00013972,2]
[339945599,1728178251276,-935.17,0.00013972,2]
[339945600,1728178251285,-530.89,0.00013972,2]
[339945601,1728178251295,-507.16,0.00013972,2]
[339945602,1728178251306,-500.0,0.00013972,2]
[339945603,1728178251316,-500.0,0.00013972,2]
[339945604,1728178251326,-500.0,0.00013972,2]
[339945605,1728178251337,-151.0,0.00013972,2]
[339945606,1728178251348,-161.513072,0.00013972,2]
[339945607,1728178251356,-205.433859,0.00013972,2]
[339945608,1728178251366,-205.433859,0.00013972,2]
[339945609,1728178251375,-500.0,0.00013972,2]
[339945610,1728178251384,-500.0,0.00013972,2]
[339945611,1728178251394,-205.433859,0.00013972,2]
[339945612,1728178251404,-205.433859,0.00013972,2]
[339945613,1728178251413,-575.4,0.00013972,2]
[339945614,1728178251422,-500.0,0.00013972,2]
[339945615,1728178251432,-500.0,0.00013972,2]
[339945616,1728178251441,-500.0,0.00013972,2]
[339945617,1728178251450,-500.0,0.00013972,2]
[339945618,1728178251459,-500.0,0.00013972,2]
[339945619,1728178251468,-500.0,0.00013972,2]
[339945620,1728178251477,-500.0,0.00013972,2]
[339945621,1728178251486,-500.0,0.00013972,2]
[339945622,1728178251495,-500.0,0.00013972,2]
[339945623,1728178251504,-500.0,0.00013972,2]
[339945624,1728178251514,-500.0,0.00013972,2]
[339945625,1728178251526,-151.0,0.00013972,2]
[339945626,1728178251536,-151.0,0.00013972,2]
[339945627,1728178251545,-500.0,0.00013972,2]
[339945628,1728178251555,-500.0,0.00013972,2]
[339945629,1728178251564,-500.0,0.00013972,2]
[339945630,1728178251574,-500.0,0.00013972,2]
[339945631,1728178251586,-500.0,0.00013972,2]
[339945632,1728178251597,-507.67,0.00013972,2]
[339945633,1728178251607,-500.0,0.00013972,2]
[339945634,1728178251616,-500.0,0.00013972,2]
[339945635,1728178251627,-704.83,0.00013972,2]
[339945636,1728178251638,-722.47,0.00013972,2]
[339945637,1728178251650,-500.0,0.00013972,2]
[339945638,1728178251662,-1103.64,0.00013972,2]
[339945639,1728178251672,-500.0,0.00013972,2]
[339945640,1728178251684,-487.28676618,0.00013972,2]
[339945641,1728178251696,-500.0,0.00013972,2]
[339945642,1728178251708,-500.0,0.00013972,2]
[339945643,1728178251719,-500.0,0.00013972,2]
[339945644,1728178251728,-584.33,0.00013972,2]
[339945645,1728178251740,-552.5267374,0.00013972,2]
[339945646,1728178251751,-845.28,0.00013972,2]
[339945647,1728178251762,-500.0,0.00013972,2]
[339945648,1728178251771,-500.0,0.00013972,2]
[339945650,1728178251780,-500.0,0.00013972,2]
[339945651,1728178251792,-500.0,0.00013972,2]
[339945652,1728178251804,-500.0,0.00013972,2]
[339945653,1728178251814,-686.58,0.00013972,2]
[339945654,1728178251826,-500.0,0.00013972,2]
[339945655,1728178251835,-517.49,0.00013972,2]
[339945656,1728178251848,-500.0,0.00013972,2]
[339945657,1728178251858,-620.5,0.00013972,2]
[339945658,1728178251868,-500.0,0.00013972,2]
[339945659,1728178251879,-151.0,0.00013972,2]
[339945660,1728178251889,-500.0,0.00013972,2]
[339945661,1728178251900,-788.9,0.00013972,2]
[339945662,1728178251913,-500.0,0.00013972,2]
[339945663,1728178251923,-636.40568954,0.00013972,2]
[339945664,1728178251933,-500.0,0.00013972,2]
[339945665,1728178251944,-500.0,0.00013972,2]
[339945666,1728178251955,-500.0,0.00013972,2]
[339945667,1728178251964,-500.0,0.00013972,2]
[339945668,1728178251976,-500.0,0.00013972,2]
[339945669,1728178251987,-500.0,0.00013972,2]
[339945670,1728178251996,-151.0,0.00013972,2]
[339945671,1728178252006,-631.24,0.00013972,2]
[339945672,1728178252017,-532.32,0.00013972,2]
[339945673,1728178252028,-500.0,0.00013972,2]
[339945674,1728178252038,-373.65696865,0.00013972,2]
[339945675,1728178252050,-500.0,0.00013972,2]
[339945676,1728178252061,-739.8,0.00013972,2]
[339945677,1728178252072,-151.0,0.00013972,2]
[339945678,1728178252082,-151.0,0.00013972,2]
[339945679,1728178252092,-500.0,0.00013972,2]
[339945680,1728178252101,-500.0,0.00013972,2]
[339945681,1728178252111,-500.0,0.00013972,2]
[339945682,1728178252122,-542.33,0.00013972,2]
[339945683,1728178252131,-143.70738932,0.00013972,2]
[339945684,1728178252569,-741.16261068,0.00013972,2]
[339945685,1728178252579,-151.0,0.00013972,2]
[339945686,1728178252588,-303.8847187,0.00013972,2]
[339945687,1728178252605,-82.93518908,0.00013972,2]
[339945688,1728178252614,-549.93,0.00013972,2]
[339945689,1728178252624,-104.25481092,0.00013972,2]
[339945703,1728178537029,292.26123345,0.00010209,2]
[339945712,1728179032273,1379.20069,0.0001,2]
[339945771,1728179440193,-176.42,0.00010959,2]
[339945772,1728179440203,-73.58,0.00010959,2]
[339945773,1728179442200,-808.53,0.00010959,2]
[339945774,1728179442210,-365.333113,0.00012,2]
[339945775,1728179442219,-163.658777,0.00012301,2]
[339945776,1728179442228,-205.528746,0.00012317,2]
[339945777,1728179442237,-163.658777,0.00012365,2]
[339945778,1728179442247,-205.528746,0.00012379,2]
[339945779,1728179442256,-163.658777,0.00012429,2]
[339945780,1728179442267,-163.658777,0.00012493,2]
[339945781,1728179442278,-163.658777,0.00012557,2]
[339945782,1728179442288,-163.658777,0.00012621,2]
[339945783,1728179442297,-163.658777,0.00012685,2]
[339945784,1728179442308,-163.658777,0.00012749,2]
[339945785,1728179442319,-163.658777,0.00012814,2]
[339945786,1728179442329,-163.658777,0.00012878,2]
[339945787,1728179442341,-163.658777,0.00012942,2]
[339945788,1728179442351,-1002.4428828,0.00013205,2]
[339945789,1728179442361,-600.0,0.00013439,2]
[339945790,1728179442371,-468.0916399,0.00013559,2]
[339945791,1728179442380,-300.0,0.00013569,2]
[339945792,1728179442390,-300.0,0.00013569,2]
[339945793,1728179442399,-11193.50746032,0.0001357,2]
[339945794,1728179442408,-3354.11656275,0.00013578,2]
[339945795,1728179442417,-600.0,0.00013579,2]
[339945796,1728179442426,-819.66133378,0.00013598,2]
[339945797,1728179442436,-308.74028568,0.00013677,2]
[339945798,1728179442446,-1041.58266888,0.00013678,2]
[339945799,1728179442455,-15551.36418894,0.00013678,2]
[339945800,1728179442467,-308.933394,0.00013678,2]
[339945823,1728179446178,-257.97207789,0.00013678,2]
[339945865,1728180632221,-482.60938904,0.00010859,2]
[339945867,1728180632233,-358.200135,0.00012,2]
[339945869,1728180632245,-171.8062087,0.00012563,2]
[339945871,1728180632255,-6397.98868972,0.00013158,2]
[339945873,1728180632266,-801.9543062,0.00013205,2]
[339945875,1728180632278,-153.0,0.000133,2]
[339945876,1728180632287,-300.0,0.00013399,2]
[339945878,1728180632298,-300.0,0.00013399,2]
[339945880,1728180632309,-307.7118768,0.000134,2]
[339945882,1728180632320,-153.0,0.000134,2]
[339945884,1728180632332,-153.0,0.000134,2]
[339945885,1728180632342,-153.0,0.000134,2]
[339945886,1728180632353,-153.0,0.000134,2]
[339945887,1728180632363,-975.98132891,0.00013439,2]
[339945888,1728180632373,-3148.49575837,0.00013544,2]
[339945889,1728180632382,-1037.30177119,0.00013557,2]
[339945890,1728180632391,-1861.78775,0.00013643,2]
[339945891,1728180632401,-1069.9337225,0.00013643,2]
[339945892,1728180632414,-7676.48663008,0.00013644,2]
[339945901,1728180640516,-80022.86934381,0.00013644,2]
[339945902,1728180640531,-615.52441491,0.00013644,2]
[339945903,1728180640541,-218671.04205585,0.00013644,2]
[339945904,1728180640550,-306.4374675,0.00013644,2]
[339945905,1728180640559,-153.0,0.00013644,2]
[339945906,1728180640569,-130255.07473814,0.00013644,2]
[339945907,1728180640580,-1017.72000827,0.00013644,2]
[339945911,1728180643399,-620.43,0.00013644,2]
[339945925,1728181135370,495.98,0.00020001,120]
[339945975,1728181832278,-379.335778,0.00012,2]
[339945976,1728181832291,-741.563445,0.00013205,2]
[339945977,1728181832302,-2807.99688644,0.00013415,2]
[339945978,1728181832315,-4389.86140038,0.00013415,2]
[339945979,1728181832326,-600.0,0.00013439,2]
[339945980,1728181832339,-300.0,0.00013477,2]
[339945981,1728181832351,-300.0,0.00013477,2]
[339945982,1728181832361,-2941.87208371,0.00013478,2]
[339945983,1728181832372,-465.154582,0.00013525,2]
[339945984,1728181832384,-852.57056504,0.00013561,2]
[339945985,1728181832396,-42599.00186777,0.00013561,2]
[339945986,1728181832410,-1065.10656807,0.00013578,2]
[339945987,1728181832421,-150.112233,0.000136,2]
[339945988,1728181832432,-150.112233,0.000136,2]
[339945989,1728181832444,-150.112233,0.000136,2]
[339945990,1728181832455,-150.112233,0.000136,2]
[339945991,1728181832466,-150.112233,0.000136,2]
[339945992,1728181832477,-150.112233,0.000136,2]
[339945993,1728181832490,-150.112233,0.000136,2]
[339945994,1728181832501,-150.112233,0.000136,2]
[339945995,1728181832512,-412.6084831,0.000136,2]
[339945996,1728181832523,-153.0,0.000136,2]
[339945997,1728181832535,-153.0,0.000136,2]
[339945998,1728181832547,-418.7880405,0.000136,2]
[339945999,1728181832558,-209.5952082,0.000136,2]
[339946000,1728181832569,-153.0,0.000136,2]
[339946001,1728181832584,-5350.72086463,0.00013637,2]
[339946002,1728181832599,-20741.09243227,0.00013637,2]
[339946003,1728181832611,-6763.88765322,0.00013637,2]
[339946040,1728181840661,-1211.21613045,0.00013637,2]
[339946041,1728181840674,-12417.99488543,0.00013637,2]
[339946042,1728181840685,-26091.8132969,0.00013647,2]
[339946043,1728181840696,-20393.0986691,0.00013647,2]
[339946044,1728181840708,-78275.4398906,0.00013657,2]
[339946045,1728181840718,-61179.2960072,0.00013657,2]
[339946046,1728181840728,-26091.8132969,0.00013658,2]
[339946047,1728181840738,-20393.0986691,0.00013658,2]
[339946048,1728181840748,-151.0,0.00013658,2]
[339946049,1728181840759,-152.254837,0.00013658,2]
[339946050,1728181840772,-151.0,0.00013658,2]
[339946051,1728181840783,-151.0,0.00013658,2]
[339946052,1728181840794,-151.599732,0.00013658,2]
[339946053,1728181840804,-151.203725,0.00013658,2]
[339946054,1728181840815,-26091.8132969,0.00013658,2]
[339946055,1728181840825,-20393.0986691,0.00013658,2]
[339946056,1728181840836,-151.251563,0.00013667,2]
[339946057,1728181840846,-151.0,0.00013667,2]
[339946058,1728181840857,-151.0,0.00013667,2]
[339946059,1728181840870,-152.116987,0.00013667,2]
[339946060,1728181840880,-151.0,0.00013667,2]
[339946061,1728181840889,-151.0,0.00013667,2]
[339946062,1728181840899,-151.0,0.00013667,2]
[339946063,1728181840911,-151.689506,0.00013667,2]
[339946064,1728181840923,-151.0,0.00013667,2]
[339946065,1728181840934,-151.0,0.00013667,2]
[339946066,1728181840945,-151.0,0.00013667,2]
[339946067,1728181840957,-151.0,0.00013667,2]
[339946068,1728181840969,-151.0,0.00013667,2]
[339946069,1728181840981,-151.0,0.00013667,2]
[339946070,1728181840991,-152.819195,0.00013667,2]
[339946071,1728181841002,-226.254019,0.00013667,2]
[339946072,1728181841012,-226.254019,0.00013667,2]
[339946073,1728181841022,-226.254019,0.00013667,2]
[339946074,1728181841032,-226.254019,0.00013667,2]
[339946075,1728181841042,-151.0,0.00013667,2]
[339946076,1728181841053,-151.0,0.00013667,2]
[339946077,1728181841064,-609.788433,0.00013667,2]
[339946078,1728181841075,-609.788433,0.00013667,2]
[339946079,1728181841086,-609.788433,0.00013667,2]
[339946080,1728181841097,-609.788433,0.00013667,2]
[339946081,1728181841107,-353.46795,0.00013667,2]
[339946082,1728181841118,-353.46795,0.00013667,2]
[339946083,1728181841127,-353.46795,0.00013667,2]
[339946084,1728181841137,-353.46795,0.00013667,2]
[339946085,1728181841148,-234.268555,0.00013667,2]
[339946086,1728181841159,-234.268555,0.00013667,2]
[339946087,1728181841169,-234.268555,0.00013667,2]
[339946088,1728181841179,-151.0,0.00013667,2]
[339946089,1728181841188,-151.0,0.00013667,2]
[339946090,1728181841198,-234.268555,0.00013667,2]
[339946091,1728181841207,-151.0,0.00013667,2]
[339946092,1728181841218,-234.268555,0.00013667,2]
[339946093,1728181841229,-113173.76434296,0.00013667,2]
[339946094,1728181841240,-9966.3932255,0.00013667,2]
[339946097,1728181843385,-234.268555,0.00013667,2]
[339946099,1728181843396,-51.76797854,0.00013667,2]
[339946100,1728181843551,-963.928774,0.00013667,2]
[339946106,1728181846461,-16293.84467009,0.00013667,2]
[339946135,1728182919872,5305.91,0.00014,30]
[339946190,1728183032628,-360.368989,0.00012,2]
[339946191,1728183032638,-204.904639,0.00012683,2]
[339946192,1728183032648,-1044.156652,0.00013205,2]
[339946194,1728183032659,-294.52058076,0.00013241,2]
[339946196,1728183032672,-4421.12622384,0.00013241,2]
[339946198,1728183032682,-204.904639,0.00013344,2]
[339946200,1728183032693,-154.245448,0.000134,2]
[339946202,1728183032703,-2737.70908152,0.00013568,2]
[339946204,1728183032714,-300.0,0.00013595,2]
[339946207,1728183032724,-300.0,0.00013595,2]
[339946209,1728183032735,-958.5959112,0.00013597,2]
[339946211,1728183032745,-209.5952082,0.000136,2]
[339946213,1728183032755,-153.0,0.000136,2]
[339946215,1728183032765,-153.0,0.000136,2]
[339946217,1728183032775,-15273.349,0.000136,2]
[339946218,1728183032785,-661.23465449,0.00013667,2]
[339946219,1728183032797,-36197.9192955,0.00013668,2]
[339946220,1728183032809,-25660.89005708,0.00013668,2]
[339946229,1728183040649,-850.13821272,0.00013668,2]
[339946230,1728183040662,-36197.9192955,0.00013668,2]
[339946231,1728183040673,-21195.04667666,0.00013668,2]
[339946239,1728183043906,-5315.98159314,0.00013668,2]
[339946240,1728183043916,-2380.76463088,0.00013669,2]
[339946250,1728183046780,-15718.19501692,0.00013669,2]
[339946251,1728183046791,-13255.5141349,0.00013669,2]
[339946252,1728183046800,-501.18733525,0.00013673,2]
[339946253,1728183046810,-501.6104802,0.00013673,2]
[339946254,1728183046819,-500.52801195,0.00013673,2]
[339946255,1728183046829,-500.0,0.00013673,2]
[339946256,1728183046838,-247.71070893,0.00013677,2]
[339946257,1728183046847,-12095.02290438,0.00013677,2]
[339946258,1728183046857,-72395.8385911,0.00013678,2]
[339946259,1728183046867,-37242.36759806,0.00013678,2]
[339946260,1728183046896,-649.0,0.00013678,2]
[339946269,1728183603655,500.0,0.0001,2]
[339946270,1728183604006,476.6367361,0.0001,2]
[339946328,1728184239100,-342.350539,0.00012,2]
[339946329,1728184239111,-959.3038662,0.000133,2]
[339946330,1728184239121,-4715.6468047,0.00013366,2]
[339946331,1728184239130,-300.0,0.00013408,2]
[339946332,1728184239141,-300.0,0.00013408,2]
[339946333,1728184239152,-160.513,0.00013409,2]
[339946334,1728184239162,-579.62,0.00013409,2]
[339946335,1728184239171,-1218.0,0.00013409,2]
[339946336,1728184239181,-5957.05,0.00013409,2]
[339946337,1728184239190,-465.0077291,0.00013491,2]
[339946338,1728184239200,-175.84128473,0.00013578,2]
[339946339,1728184239209,-862.73632008,0.00013588,2]
[339946340,1728184239219,-1000.0,0.00013588,2]
[339946341,1728184239229,-1615.07,0.000136,2]
[339946342,1728184239238,-209.5952082,0.000136,2]
[339946343,1728184239247,-412.9375309,0.000136,2]
[339946344,1728184239257,-412.9375309,0.000136,2]
[339946345,1728184239267,-209.5952082,0.000136,2]
[339946346,1728184239277,-412.9375309,0.000136,2]
[339946347,1728184239287,-209.5952082,0.000136,2]
[339946348,1728184239296,-235.0,0.0001362,2]
[339946349,1728184239306,-11770.3922887,0.00013668,2]
[339946350,1728184239315,-3188.12688775,0.00013668,2]
[339946351,1728184239329,-2840.31324716,0.00013668,2]
[339946358,1728184240907,-2018.62708633,0.00013668,2]
[339946359,1728184240916,-502.72595486,0.00013668,2]
[339946360,1728184240926,-3159.03367108,0.00013677,2]
[339946361,1728184240935,-35311.176866,0.00013678,2]
[339946362,1728184240944,-24141.2016637,0.00013678,2]
[339946363,1728184240954,-22559.05525721,0.00013678,2]
[339946376,1728184244062,-12752.12160879,0.00013678,2]
[339946377,1728184244072,-24141.2016637,0.00013678,2]
[339946378,1728184244081,-898.63159922,0.00013688,2]
[339946399,1728184855504,-160.035448,0.00011902,2]
[339946400,1728184855530,-339.75108,0.00012,2]
[339946402,1728184944574,-160.035448,0.00012215,2]
[339946403,1728184967976,-178.316791,0.00012339,2]
[339946404,1728184979697,160.035448,0.000118,2]
[339946405,1728184980295,160.035448,0.00012421,2]
[339946407,1728185035207,-178.316791,0.0001266,2]
[339946408,1728185035235,-213.6327787,0.000129,2]
[339946409,1728185035263,-306.0,0.000129,2]
[339946410,1728185035290,-420.6284941,0.000129,2]
[339946411,1728185035317,-178.316791,0.00012982,2]
[339946414,1728185113462,322.763526,0.00012,2]
[339946415,1728185127242,-1000.0,0.00013041,2]
[339946416,1728185127270,-160.035448,0.00013042,2]
[339946417,1728185127297,-62.0965082,0.000133,2]
[339946452,1728185431865,-1000.0,0.000133,2]
[339946454,1728185431876,-866.8348526,0.000133,2]
[339946455,1728185431888,-160.0,0.00013485,3]
[339946456,1728185431900,-526.91397107,0.000135,2]
[339946457,1728185431911,-74.28930182,0.00013571,4]
[339946470,1728185440118,-34211.44521733,0.00013471,2]
[339946471,1728185440130,-85.71069818,0.00013571,4]
[339946472,1728185440140,-239.0,0.0001358,2]
[339946473,1728185440152,-1000.0,0.00013588,2]
[339946474,1728185440162,-889.82140689,0.00013593,2]
[339946475,1728185440173,-300.0,0.00013597,2]
[339946476,1728185440184,-300.0,0.00013597,2]
[339946477,1728185440196,-3000.0,0.00013598,2]
[339946478,1728185440207,-412.9375309,0.000136,2]
[339946479,1728185440219,-805.7909411,0.000136,2]
[339946480,1728185440232,-160.0,0.00013657,5]
[339946481,1728185440243,-10731.327355,0.00013676,2]
[339946482,1728185440255,-6437.65377701,0.00013676,2]
[339946483,1728185440267,-10731.327355,0.00013676,2]
[339946484,1728185440277,-6437.65377701,0.00013676,2]
[339946485,1728185440288,-502.72595486,0.00013676,2]
[339946486,1728185440299,-9427.79939957,0.00013678,2]
[339946510,1728185443093,-6455.0,0.00013678,2]
[339946511,1728185443231,-400.11942337,0.00013678,2]
[339946628,1728186638191,-306.625349,0.00012,2]
[339946629,1728186638204,-605.8558357,0.00012665,2]
[339946630,1728186638215,-2173.99582302,0.00013228,2]
[339946631,1728186638228,-975.284067,0.000133,2]
[339946632,1728186638238,-465.00038645,0.00013457,2]
[339946633,1728186638250,-1000.0,0.00013578,2]
[339946634,1728186638261,-239.0,0.0001358,2]
[339946635,1728186638273,-1015.43801166,0.00013588,2]
[339946636,1728186638284,-300.0,0.00013597,2]
[339946637,1728186638296,-300.0,0.00013597,2]
[339946638,1728186638306,-5923.77975557,0.00013598,2]
[339946639,1728186638318,-3000.0,0.00013598,2]
[339946640,1728186638327,-2566.4075016,0.000136,2]
[339946641,1728186638351,-5550.850656,0.000136,2]
[339946642,1728186638362,-244.8866,0.0001362,2]
[339946643,1728186638371,-556.99323406,0.00013656,2]
[339946644,1728186638382,-10903.0946538,0.00013656,2]
[339946645,1728186638393,-6216.70244248,0.00013656,2]
[339946646,1728186638408,-10903.0946538,0.00013657,2]
[339946647,1728186638418,-6216.70244248,0.00013657,2]
[339946648,1728186638428,-1796.00818471,0.00013658,2]
[339946659,1728186640114,-31121.97497158,0.00013658,2]
[339946660,1728186640126,-10903.0946538,0.00013658,2]
[339946662,1728186640137,-6216.70244248,0.00013658,2]
[339946664,1728186640147,-40241.38477607,0.00013658,2]
[339946680,1728186643178,-6179.99999999,0.00013658,2]
[339946757,1728187336116,304.87,0.00014,30]
[339946760,1728187361454,10000.0,0.00014,30]
[339946761,1728187369511,10000.0,0.00014,30]